[Event "Titled Tuesday Blitz October 5 2021"]
[White "Maksimovic, Bojan"]
[Black "Majdan, Joanna"]
[WhiteFideId "14408120"]
[BlackFideId "1121979"]
[WhiteElo "2439"]
[BlackElo "2270"]
[Result "1-0"]
[Round "02"]
[TimeControl "180+1"]
[Date "2021.10.05"]
[WhiteClock "0:01:40"]
[BlackClock "0:01:35"]

1. e4 {[%clk 0:03:00]}  c5 {[%clk 0:02:59]} 2. Nf3 {[%clk 0:03:01]}  e6 {[%clk 0:02:59]} 3. d4 {[%clk 0:03:00]}  d5 {[%clk 0:02:59]} 4. exd5 {[%clk 0:02:59]}  exd5 {[%clk 0:03:00]} 5. Be2 {[%clk 0:02:55]}  Nc6 {[%clk 0:02:59]} 6. O-O {[%clk 0:02:55]}  Bd6 {[%clk 0:02:59]} 7. dxc5 {[%clk 0:02:55]}  Bxc5 {[%clk 0:03:00]} 8. Nc3 {[%clk 0:02:55]}  Nge7 {[%clk 0:03:00]} 9. Nb5 {[%clk 0:02:43]}  O-O {[%clk 0:02:56]} 10. Nbd4 {[%clk 0:02:44]}  Bb6 {[%clk 0:02:44]} 11. c3 {[%clk 0:02:43]}  Bg4 {[%clk 0:02:37]} 12. Be3 {[%clk 0:02:36]}  a6 {[%clk 0:02:33]} 13. h3 {[%clk 0:02:28]}  Bh5 {[%clk 0:02:32]} 14. Re1 {[%clk 0:02:07]}  Qd6 {[%clk 0:02:31]} 15. Nxc6 {[%clk 0:02:00]}  Qxc6 {[%clk 0:02:18]} 16. Ne5 {[%clk 0:01:59]}  Qe6 {[%clk 0:01:50]} 17. Bxh5 {[%clk 0:01:57]}  Bc7 {[%clk 0:01:46]} 18. Bd4 {[%clk 0:01:55]}  Qf5 {[%clk 0:01:40]} 19. Bg4 {[%clk 0:01:53]}  Qf4 {[%clk 0:01:40]} 20. g3 {[%clk 0:01:49]}  Qh6 {[%clk 0:01:38]} 21. Qc1 {[%clk 0:01:42]}  g5 {[%clk 0:01:35]} 22. Nd7 {[%clk 0:01:40]} 1-0


[Site "https://www.chess.com"]

[Event "Titled Tuesday Blitz October 5 2021"]
[White "Oparin, Grigoriy"]
[Black "Grieve, Harry"]
[WhiteFideId "24125890"]
[BlackFideId "426520"]
[WhiteElo "2604"]
[BlackElo "2208"]
[Result "1-0"]
[Round "02"]
[TimeControl "180+1"]
[Date "2021.10.05"]
[WhiteClock "0:01:35"]
[BlackClock "0:00:04"]

1. g3 {[%clk 0:03:00]}  g6 {[%clk 0:02:58]} 2. Bg2 {[%clk 0:03:01]}  Bg7 {[%clk 0:02:59]} 3. c4 {[%clk 0:03:02]}  f5 {[%clk 0:02:58]} 4. Nc3 {[%clk 0:03:03]}  Nf6 {[%clk 0:02:59]} 5. d3 {[%clk 0:03:03]}  O-O {[%clk 0:02:58]} 6. Nf3 {[%clk 0:03:03]}  d6 {[%clk 0:02:57]} 7. O-O {[%clk 0:03:04]}  e5 {[%clk 0:02:57]} 8. e4 {[%clk 0:03:04]}  Nc6 {[%clk 0:02:53]} 9. Bg5 {[%clk 0:03:01]}  Be6 {[%clk 0:02:50]} 10. Nd5 {[%clk 0:03:01]}  Qd7 {[%clk 0:02:50]} 11. exf5 {[%clk 0:02:55]}  Bxf5 {[%clk 0:02:45]} 12. Nh4 {[%clk 0:02:53]}  Bg4 {[%clk 0:02:39]} 13. Qd2 {[%clk 0:02:52]}  Rae8 {[%clk 0:02:30]} 14. Be3 {[%clk 0:02:51]}  Nd8 {[%clk 0:02:20]} 15. Rae1 {[%clk 0:02:50]}  c6 {[%clk 0:02:16]} 16. Nc3 {[%clk 0:02:48]}  Ne6 {[%clk 0:02:13]} 17. h3 {[%clk 0:02:46]}  Bh5 {[%clk 0:02:09]} 18. g4 {[%clk 0:02:45]}  Bxg4 {[%clk 0:02:02]} 19. hxg4 {[%clk 0:02:46]}  Nxg4 {[%clk 0:02:03]} 20. Bh3 {[%clk 0:02:43]}  Qe7 {[%clk 0:01:45]} 21. Ng2 {[%clk 0:02:39]}  Nf6 {[%clk 0:01:44]} 22. d4 {[%clk 0:02:36]}  Nh5 {[%clk 0:01:41]} 23. dxe5 {[%clk 0:02:31]}  dxe5 {[%clk 0:01:29]} 24. Ne4 {[%clk 0:02:31]}  Nhf4 {[%clk 0:01:26]} 25. Bxe6+ {[%clk 0:02:23]}  Nxe6 {[%clk 0:01:24]} 26. Qd6 {[%clk 0:02:23]}  Qf7 {[%clk 0:01:16]} 27. Qd3 {[%clk 0:01:58]}  Qf3 {[%clk 0:01:04]} 28. Qc2 {[%clk 0:01:58]}  Rf5 {[%clk 0:00:55]} 29. Ng3 {[%clk 0:01:57]}  Ref8 {[%clk 0:00:34]} 30. Qe4 {[%clk 0:01:55]}  Qxe4 {[%clk 0:00:25]} 31. Nxe4 {[%clk 0:01:55]}  Nf4 {[%clk 0:00:23]} 32. Nxf4 {[%clk 0:01:42]}  exf4 {[%clk 0:00:24]} 33. Bc5 {[%clk 0:01:42]}  Rd8 {[%clk 0:00:16]} 34. f3 {[%clk 0:01:41]}  Bxb2 {[%clk 0:00:12]} 35. Rd1 {[%clk 0:01:39]}  Rxd1 {[%clk 0:00:05]} 36. Rxd1 {[%clk 0:01:40]}  Rf7 {[%clk 0:00:05]} 37. Bxa7 {[%clk 0:01:40]}  b5 {[%clk 0:00:03]} 38. cxb5 {[%clk 0:01:39]}  cxb5 {[%clk 0:00:04]} 39. Bc5 {[%clk 0:01:36]}  Ra7 {[%clk 0:00:04]} 40. Bxa7 {[%clk 0:01:35]} 1-0


[Site "https://www.chess.com"]

[Event "Titled Tuesday Blitz October 5 2021"]
[White "Ozen, Bahadir"]
[Black "Bristy, Mukherjee"]
[WhiteFideId "6337058"]
[BlackFideId "25077325"]
[WhiteElo "2503"]
[BlackElo "1661"]
[Result "1-0"]
[Round "02"]
[TimeControl "180+1"]
[Date "2021.10.05"]
[WhiteClock "0:01:23"]
[BlackClock "0:00:46"]

1. e4 {[%clk 0:03:00]}  g6 {[%clk 0:02:58]} 2. d4 {[%clk 0:03:00]}  Bg7 {[%clk 0:02:59]} 3. Nf3 {[%clk 0:03:00]}  c5 {[%clk 0:02:59]} 4. d5 {[%clk 0:02:59]}  d6 {[%clk 0:02:59]} 5. Bb5+ {[%clk 0:02:59]}  Bd7 {[%clk 0:02:59]} 6. a4 {[%clk 0:03:00]}  a6 {[%clk 0:02:55]} 7. Be2 {[%clk 0:02:59]}  Nf6 {[%clk 0:02:52]} 8. Nc3 {[%clk 0:02:59]}  O-O {[%clk 0:02:51]} 9. O-O {[%clk 0:02:59]}  Qa5 {[%clk 0:02:49]} 10. Bd2 {[%clk 0:02:47]}  Qb6 {[%clk 0:02:43]} 11. a5 {[%clk 0:02:27]}  Qc7 {[%clk 0:02:34]} 12. h3 {[%clk 0:02:23]}  h5 {[%clk 0:02:31]} 13. Re1 {[%clk 0:02:22]}  Nh7 {[%clk 0:02:25]} 14. Bc4 {[%clk 0:02:19]}  b5 {[%clk 0:02:12]} 15. axb6 {[%clk 0:02:19]}  Qxb6 {[%clk 0:02:12]} 16. Ra3 {[%clk 0:02:16]}  a5 {[%clk 0:01:59]} 17. e5 {[%clk 0:02:12]}  Na6 {[%clk 0:01:56]} 18. Bxa6 {[%clk 0:02:00]}  Qxa6 {[%clk 0:01:53]} 19. Qa1 {[%clk 0:01:54]}  Qb6 {[%clk 0:01:45]} 20. Ne4 {[%clk 0:01:48]}  Bf5 {[%clk 0:01:42]} 21. Bxa5 {[%clk 0:01:46]}  Qb7 {[%clk 0:01:37]} 22. c4 {[%clk 0:01:45]}  Rfb8 {[%clk 0:01:30]} 23. Bc3 {[%clk 0:01:35]}  Rxa3 {[%clk 0:01:26]} 24. bxa3 {[%clk 0:01:35]}  Qb3 {[%clk 0:01:23]} 25. Nfd2 {[%clk 0:01:29]}  Qc2 {[%clk 0:01:19]} 26. exd6 {[%clk 0:01:29]}  Bxc3 {[%clk 0:01:17]} 27. Qxc3 {[%clk 0:01:30]}  Qxc3 {[%clk 0:01:10]} 28. Nxc3 {[%clk 0:01:31]}  exd6 {[%clk 0:01:10]} 29. Nb5 {[%clk 0:01:31]}  Rb6 {[%clk 0:00:57]} 30. Re8+ {[%clk 0:01:29]}  Kg7 {[%clk 0:00:57]} 31. Rd8 {[%clk 0:01:30]}  Ra6 {[%clk 0:00:55]} 32. Rxd6 {[%clk 0:01:29]}  Ra4 {[%clk 0:00:52]} 33. Rc6 {[%clk 0:01:24]}  Nf6 {[%clk 0:00:51]} 34. Rxc5 {[%clk 0:01:23]}  Ne4 {[%clk 0:00:45]} 35. Nxe4 {[%clk 0:01:23]}  Bxe4 {[%clk 0:00:46]} 36. Nc3 {[%clk 0:01:23]} 1-0


[Site "https://www.chess.com"]

[Event "Titled Tuesday Blitz October 5 2021"]
[White "Petesch, Gabriel"]
[Black "Shkapenko, Pavel"]
[WhiteFideId "2032465"]
[BlackFideId "4151933"]
[WhiteElo "2374"]
[BlackElo "2386"]
[Result "1-0"]
[Round "02"]
[TimeControl "180+1"]
[Date "2021.10.05"]
[WhiteClock "0:00:03"]
[BlackClock "0:00:03"]

1. Nf3 {[%clk 0:02:56]}  Nf6 {[%clk 0:02:58]} 2. g3 {[%clk 0:02:56]}  d5 {[%clk 0:02:57]} 3. Bg2 {[%clk 0:02:55]}  c6 {[%clk 0:02:58]} 4. b3 {[%clk 0:02:54]}  Bg4 {[%clk 0:02:58]} 5. Bb2 {[%clk 0:02:53]}  Nbd7 {[%clk 0:02:59]} 6. O-O {[%clk 0:02:52]}  e6 {[%clk 0:02:59]} 7. d3 {[%clk 0:02:50]}  Be7 {[%clk 0:02:59]} 8. Nbd2 {[%clk 0:02:50]}  O-O {[%clk 0:03:00]} 9. c4 {[%clk 0:02:45]}  a5 {[%clk 0:02:59]} 10. Qc2 {[%clk 0:02:44]}  a4 {[%clk 0:02:59]} 11. Rfd1 {[%clk 0:02:31]}  b5 {[%clk 0:02:58]} 12. Nd4 {[%clk 0:02:19]}  Qb6 {[%clk 0:02:57]} 13. Rac1 {[%clk 0:02:06]}  a3 {[%clk 0:02:18]} 14. Ba1 {[%clk 0:01:59]}  b4 {[%clk 0:02:18]} 15. cxd5 {[%clk 0:01:33]}  cxd5 {[%clk 0:02:18]} 16. N2f3 {[%clk 0:01:30]}  Bc5 {[%clk 0:02:11]} 17. Rf1 {[%clk 0:00:26]}  e5 {[%clk 0:02:03]} 18. h3 {[%clk 0:00:26]}  Bxf3 {[%clk 0:01:53]} 19. Nxf3 {[%clk 0:00:24]}  e4 {[%clk 0:01:49]} 20. dxe4 {[%clk 0:00:22]}  dxe4 {[%clk 0:01:49]} 21. Ng5 {[%clk 0:00:13]}  e3 {[%clk 0:01:44]} 22. f4 {[%clk 0:00:10]}  Rac8 {[%clk 0:01:40]} 23. Qf5 {[%clk 0:00:10]}  h6 {[%clk 0:01:33]} 24. Ne4 {[%clk 0:00:10]}  Rc7 {[%clk 0:00:44]} 25. Nxf6+ {[%clk 0:00:09]}  Nxf6 {[%clk 0:00:44]} 26. Bxf6 {[%clk 0:00:07]}  Qxf6 {[%clk 0:00:44]} 27. Qxf6 {[%clk 0:00:07]}  gxf6 {[%clk 0:00:44]} 28. Rc4 {[%clk 0:00:08]}  Bd6 {[%clk 0:00:42]} 29. Rfc1 {[%clk 0:00:06]}  Rxc4 {[%clk 0:00:41]} 30. Rxc4 {[%clk 0:00:07]}  Rd8 {[%clk 0:00:37]} 31. Be4 {[%clk 0:00:08]}  h5 {[%clk 0:00:28]} 32. Kg2 {[%clk 0:00:07]}  h4 {[%clk 0:00:28]} 33. Bd3 {[%clk 0:00:07]}  hxg3 {[%clk 0:00:27]} 34. Kxg3 {[%clk 0:00:08]}  Kg7 {[%clk 0:00:24]} 35. Re4 {[%clk 0:00:07]}  Bc5 {[%clk 0:00:23]} 36. Rc4 {[%clk 0:00:07]}  Bd6 {[%clk 0:00:19]} 37. Kf3 {[%clk 0:00:07]}  Re8 {[%clk 0:00:18]} 38. Bf5 {[%clk 0:00:08]}  Re7 {[%clk 0:00:16]} 39. Re4 {[%clk 0:00:08]}  Rxe4 {[%clk 0:00:16]} 40. Bxe4 {[%clk 0:00:08]}  Bc5 {[%clk 0:00:16]} 41. Bf5 {[%clk 0:00:07]}  Kh6 {[%clk 0:00:16]} 42. Bg4 {[%clk 0:00:07]}  Kg6 {[%clk 0:00:16]} 43. Ke4 {[%clk 0:00:06]}  Kg7 {[%clk 0:00:16]} 44. Kd5 {[%clk 0:00:06]}  Be7 {[%clk 0:00:15]} 45. Kd4 {[%clk 0:00:06]}  f5 {[%clk 0:00:14]} 46. Bxf5 {[%clk 0:00:05]}  Kf6 {[%clk 0:00:14]} 47. Bg4 {[%clk 0:00:05]}  Bd6 {[%clk 0:00:13]} 48. Kxe3 {[%clk 0:00:05]}  Bc5+ {[%clk 0:00:14]} 49. Kf3 {[%clk 0:00:05]}  Kg6 {[%clk 0:00:13]} 50. e4 {[%clk 0:00:06]}  f6 {[%clk 0:00:13]} 51. h4 {[%clk 0:00:04]}  Bd4 {[%clk 0:00:13]} 52. h5+ {[%clk 0:00:04]}  Kh6 {[%clk 0:00:13]} 53. Ke2 {[%clk 0:00:04]}  Bb2 {[%clk 0:00:13]} 54. Kf3 {[%clk 0:00:02]}  Bc3 {[%clk 0:00:12]} 55. Kg3 {[%clk 0:00:03]}  Bd2 {[%clk 0:00:11]} 56. Bf3 {[%clk 0:00:03]}  Bc1 {[%clk 0:00:10]} 57. Kg4 {[%clk 0:00:03]}  Bd2 {[%clk 0:00:08]} 58. Kf5 {[%clk 0:00:03]}  Kg7 {[%clk 0:00:08]} 59. e5 {[%clk 0:00:03]}  fxe5 {[%clk 0:00:08]} 60. fxe5 {[%clk 0:00:03]}  Kf7 {[%clk 0:00:08]} 61. e6+ {[%clk 0:00:04]}  Ke7 {[%clk 0:00:09]} 62. Bg4 {[%clk 0:00:04]}  Be3 {[%clk 0:00:08]} 63. Kg6 {[%clk 0:00:04]}  Bd4 {[%clk 0:00:08]} 64. Kh7 {[%clk 0:00:04]}  Kf8 {[%clk 0:00:08]} 65. h6 {[%clk 0:00:04]}  Bf6 {[%clk 0:00:07]} 66. Kg6 {[%clk 0:00:04]}  Ke7 {[%clk 0:00:07]} 67. Kh7 {[%clk 0:00:04]}  Kf8 {[%clk 0:00:06]} 68. Bf3 {[%clk 0:00:04]}  Ke7 {[%clk 0:00:05]} 69. Kg8 {[%clk 0:00:03]}  Be5 {[%clk 0:00:03]} 70. Bg4 {[%clk 0:00:03]} 1-0


[Site "https://www.chess.com"]

[Event "Titled Tuesday Blitz October 5 2021"]
[White "Riazantsev, Alexander"]
[Black "Bazarov, Konstantin"]
[WhiteFideId "4125029"]
[BlackFideId "4137000"]
[WhiteElo "2497"]
[BlackElo "2084"]
[Result "1-0"]
[Round "02"]
[TimeControl "180+1"]
[Date "2021.10.05"]
[WhiteClock "0:00:03"]
[BlackClock "0:00:04"]

1. d4 {[%clk 0:03:00]}  d5 {[%clk 0:02:58]} 2. Nf3 {[%clk 0:02:59]}  c6 {[%clk 0:02:58]} 3. c4 {[%clk 0:02:59]}  Nf6 {[%clk 0:02:58]} 4. Nc3 {[%clk 0:02:57]}  a6 {[%clk 0:02:55]} 5. e3 {[%clk 0:02:56]}  Bf5 {[%clk 0:02:52]} 6. Ne5 {[%clk 0:02:49]}  h6 {[%clk 0:02:45]} 7. Qb3 {[%clk 0:02:48]}  Ra7 {[%clk 0:02:44]} 8. cxd5 {[%clk 0:02:45]}  cxd5 {[%clk 0:02:42]} 9. Bd2 {[%clk 0:02:46]}  e6 {[%clk 0:02:39]} 10. Rc1 {[%clk 0:02:45]}  Bd6 {[%clk 0:02:34]} 11. Bb5+ {[%clk 0:02:30]}  Ke7 {[%clk 0:02:20]} 12. Be2 {[%clk 0:02:20]}  Nbd7 {[%clk 0:02:13]} 13. f4 {[%clk 0:02:11]}  Re8 {[%clk 0:02:01]} 14. Na4 {[%clk 0:02:06]}  Kf8 {[%clk 0:01:52]} 15. Bb4 {[%clk 0:02:06]}  Bxb4+ {[%clk 0:01:41]} 16. Qxb4+ {[%clk 0:02:06]}  Kg8 {[%clk 0:01:34]} 17. O-O {[%clk 0:02:05]}  Nxe5 {[%clk 0:01:24]} 18. fxe5 {[%clk 0:02:04]}  Nd7 {[%clk 0:01:17]} 19. Rf2 {[%clk 0:01:30]}  b5 {[%clk 0:01:06]} 20. Nc5 {[%clk 0:01:26]}  Rc7 {[%clk 0:01:01]} 21. Qd2 {[%clk 0:01:23]}  Nxc5 {[%clk 0:00:57]} 22. dxc5 {[%clk 0:01:24]}  Be4 {[%clk 0:00:52]} 23. b4 {[%clk 0:01:21]}  Qg5 {[%clk 0:00:50]} 24. Qd4 {[%clk 0:01:21]}  Rf8 {[%clk 0:00:45]} 25. Bf3 {[%clk 0:01:20]}  Bg6 {[%clk 0:00:43]} 26. Rcf1 {[%clk 0:01:13]}  Rb8 {[%clk 0:00:40]} 27. h4 {[%clk 0:01:08]}  Qd8 {[%clk 0:00:39]} 28. Be2 {[%clk 0:01:03]}  Ra7 {[%clk 0:00:36]} 29. Rf4 {[%clk 0:00:52]}  a5 {[%clk 0:00:29]} 30. a3 {[%clk 0:00:52]}  axb4 {[%clk 0:00:28]} 31. axb4 {[%clk 0:00:53]}  Re7 {[%clk 0:00:23]} 32. Bd3 {[%clk 0:00:51]}  Bxd3 {[%clk 0:00:21]} 33. Qxd3 {[%clk 0:00:52]}  Ra7 {[%clk 0:00:21]} 34. Qe2 {[%clk 0:00:47]}  Qe8 {[%clk 0:00:21]} 35. Rg4 {[%clk 0:00:44]}  Kh8 {[%clk 0:00:20]} 36. Qf2 {[%clk 0:00:43]}  Rbb7 {[%clk 0:00:20]} 37. e4 {[%clk 0:00:39]}  dxe4 {[%clk 0:00:19]} 38. Rxe4 {[%clk 0:00:40]}  Rd7 {[%clk 0:00:17]} 39. Rf4 {[%clk 0:00:40]}  Rac7 {[%clk 0:00:17]} 40. Qe2 {[%clk 0:00:39]}  Qb8 {[%clk 0:00:15]} 41. Qh5 {[%clk 0:00:34]}  Kg8 {[%clk 0:00:15]} 42. Rg4 {[%clk 0:00:34]}  Kh8 {[%clk 0:00:13]} 43. Kh2 {[%clk 0:00:27]}  Qd8 {[%clk 0:00:13]} 44. Rf6 {[%clk 0:00:26]}  Qf8 {[%clk 0:00:13]} 45. Rgg6 {[%clk 0:00:23]}  Kg8 {[%clk 0:00:08]} 46. Rg3 {[%clk 0:00:20]}  Kh7 {[%clk 0:00:07]} 47. Rf4 {[%clk 0:00:19]}  g6 {[%clk 0:00:07]} 48. Qe2 {[%clk 0:00:18]}  h5 {[%clk 0:00:06]} 49. Qxb5 {[%clk 0:00:18]}  Qh6 {[%clk 0:00:06]} 50. Rgf3 {[%clk 0:00:17]}  Qg7 {[%clk 0:00:06]} 51. Qf1 {[%clk 0:00:16]}  Re7 {[%clk 0:00:05]} 52. Qe2 {[%clk 0:00:16]}  Kg8 {[%clk 0:00:06]} 53. Qe3 {[%clk 0:00:16]}  Red7 {[%clk 0:00:07]} 54. b5 {[%clk 0:00:16]}  Rd5 {[%clk 0:00:07]} 55. Rc4 {[%clk 0:00:12]}  Rxe5 {[%clk 0:00:04]} 56. Qf2 {[%clk 0:00:12]}  Rd5 {[%clk 0:00:04]} 57. b6 {[%clk 0:00:11]}  Qe5+ {[%clk 0:00:04]} 58. g3 {[%clk 0:00:06]}  Rcxc5 {[%clk 0:00:05]} 59. Rxc5 {[%clk 0:00:04]}  Rxc5 {[%clk 0:00:05]} 60. Rb3 {[%clk 0:00:05]}  Rb5 {[%clk 0:00:05]} 61. Rxb5 {[%clk 0:00:04]}  Qxb5 {[%clk 0:00:06]} 62. Qd4 {[%clk 0:00:04]}  Qb3 {[%clk 0:00:06]} 63. Kg2 {[%clk 0:00:04]}  Qc2+ {[%clk 0:00:06]} 64. Kf3 {[%clk 0:00:04]}  Qf5+ {[%clk 0:00:06]} 65. Ke3 {[%clk 0:00:04]}  Qb5 {[%clk 0:00:06]} 66. Qd8+ {[%clk 0:00:04]}  Kg7 {[%clk 0:00:05]} 67. Qd4+ {[%clk 0:00:04]}  e5 {[%clk 0:00:05]} 68. Qd6 {[%clk 0:00:04]}  Qb2 {[%clk 0:00:04]} 69. Ke4 {[%clk 0:00:03]}  f5+ {[%clk 0:00:05]} 70. Kd5 {[%clk 0:00:03]}  Qd4+ {[%clk 0:00:04]} 71. Ke6 {[%clk 0:00:03]}  e4 {[%clk 0:00:04]} 72. Qxd4+ {[%clk 0:00:03]} 1-0


[Site "https://www.chess.com"]

[Event "Titled Tuesday Blitz October 5 2021"]
[White "Sahil, Tickoo"]
[Black "Djordjevic, Vuk"]
[WhiteFideId "5019710"]
[BlackFideId "902098"]
[WhiteElo "2099"]
[BlackElo "2463"]
[Result "0-1"]
[Round "02"]
[TimeControl "180+1"]
[Date "2021.10.05"]
[WhiteClock "0:00:08"]
[BlackClock "0:00:31"]

1. d4 {[%clk 0:02:48]}  Nf6 {[%clk 0:02:58]} 2. Bf4 {[%clk 0:02:44]}  d5 {[%clk 0:02:58]} 3. e3 {[%clk 0:02:44]}  e6 {[%clk 0:02:59]} 4. Nd2 {[%clk 0:02:43]}  Bd6 {[%clk 0:02:59]} 5. Bg3 {[%clk 0:02:43]}  O-O {[%clk 0:02:59]} 6. Ngf3 {[%clk 0:02:42]}  c5 {[%clk 0:03:00]} 7. c3 {[%clk 0:02:40]}  Qc7 {[%clk 0:02:58]} 8. Bd3 {[%clk 0:02:31]}  Nbd7 {[%clk 0:02:54]} 9. O-O {[%clk 0:02:28]}  e5 {[%clk 0:02:54]} 10. dxe5 {[%clk 0:02:26]}  Nxe5 {[%clk 0:02:51]} 11. Nxe5 {[%clk 0:02:24]}  Bxe5 {[%clk 0:02:50]} 12. Qf3 {[%clk 0:02:24]}  Bg4 {[%clk 0:02:48]} 13. Bxe5 {[%clk 0:02:24]}  Qxe5 {[%clk 0:02:47]} 14. Qg3 {[%clk 0:02:24]}  Qe7 {[%clk 0:02:45]} 15. Rfe1 {[%clk 0:02:20]}  Rfe8 {[%clk 0:02:43]} 16. Rac1 {[%clk 0:02:17]}  Rad8 {[%clk 0:02:42]} 17. a3 {[%clk 0:02:16]}  Bh5 {[%clk 0:02:38]} 18. h3 {[%clk 0:02:10]}  Bg6 {[%clk 0:02:22]} 19. Bxg6 {[%clk 0:02:08]}  hxg6 {[%clk 0:02:23]} 20. Rcd1 {[%clk 0:01:43]}  d4 {[%clk 0:02:22]} 21. cxd4 {[%clk 0:01:39]}  cxd4 {[%clk 0:02:20]} 22. Nf1 {[%clk 0:01:11]}  d3 {[%clk 0:02:16]} 23. f3 {[%clk 0:01:05]}  Qe6 {[%clk 0:02:10]} 24. Rd2 {[%clk 0:00:58]}  Rd7 {[%clk 0:02:05]} 25. Red1 {[%clk 0:00:57]}  Red8 {[%clk 0:02:05]} 26. Qf2 {[%clk 0:00:48]}  Qe5 {[%clk 0:01:55]} 27. e4 {[%clk 0:00:41]}  Nh5 {[%clk 0:01:54]} 28. g3 {[%clk 0:00:37]}  f5 {[%clk 0:01:53]} 29. exf5 {[%clk 0:00:34]}  gxf5 {[%clk 0:01:54]} 30. Kg2 {[%clk 0:00:32]}  Rd6 {[%clk 0:01:47]} 31. Qe3 {[%clk 0:00:30]}  Qb5 {[%clk 0:01:37]} 32. Qg5 {[%clk 0:00:27]}  g6 {[%clk 0:01:23]} 33. g4 {[%clk 0:00:21]}  Ng7 {[%clk 0:01:19]} 34. Ng3 {[%clk 0:00:20]}  Qe8 {[%clk 0:01:06]} 35. gxf5 {[%clk 0:00:14]}  Qf7 {[%clk 0:00:38]} 36. f6 {[%clk 0:00:11]}  Rxf6 {[%clk 0:00:32]} 37. Rxd3 {[%clk 0:00:11]}  Rxd3 {[%clk 0:00:30]} 38. Rxd3 {[%clk 0:00:12]}  Ne6 {[%clk 0:00:31]} 39. Qd5 {[%clk 0:00:08]}  Nf4+ {[%clk 0:00:31]} 0-1


[Site "https://www.chess.com"]

[Event "Titled Tuesday Blitz October 5 2021"]
[White "Schmakel, Sam"]
[Black "Abdusattorov, Nodirbek"]
[WhiteFideId "2039311"]
[BlackFideId "14204118"]
[WhiteElo "2356"]
[BlackElo "2690"]
[Result "0-1"]
[Round "02"]
[TimeControl "180+1"]
[Date "2021.10.05"]
[WhiteClock "0:00:01"]
[BlackClock "0:01:15"]

1. Nf3 {[%clk 0:03:00]}  Nf6 {[%clk 0:02:59]} 2. g3 {[%clk 0:03:00]}  c5 {[%clk 0:02:58]} 3. Bg2 {[%clk 0:03:00]}  Nc6 {[%clk 0:02:59]} 4. O-O {[%clk 0:02:57]}  e5 {[%clk 0:02:59]} 5. c4 {[%clk 0:02:57]}  d5 {[%clk 0:02:59]} 6. cxd5 {[%clk 0:02:57]}  Nxd5 {[%clk 0:02:59]} 7. Nc3 {[%clk 0:02:55]}  Nxc3 {[%clk 0:03:00]} 8. bxc3 {[%clk 0:02:54]}  Be7 {[%clk 0:03:00]} 9. d3 {[%clk 0:02:53]}  O-O {[%clk 0:03:00]} 10. a4 {[%clk 0:02:48]}  Be6 {[%clk 0:02:56]} 11. Nd2 {[%clk 0:02:44]}  Qc7 {[%clk 0:02:55]} 12. a5 {[%clk 0:02:32]}  Nxa5 {[%clk 0:02:50]} 13. Qa4 {[%clk 0:02:32]}  Nc6 {[%clk 0:02:41]} 14. Bxc6 {[%clk 0:02:29]}  bxc6 {[%clk 0:02:42]} 15. Ba3 {[%clk 0:02:24]}  a5 {[%clk 0:02:34]} 16. Ne4 {[%clk 0:02:18]}  c4 {[%clk 0:02:31]} 17. Bxe7 {[%clk 0:02:07]}  Qxe7 {[%clk 0:02:32]} 18. dxc4 {[%clk 0:02:07]}  f5 {[%clk 0:02:30]} 19. Nd2 {[%clk 0:02:05]}  Qc5 {[%clk 0:02:24]} 20. Qa3 {[%clk 0:01:56]}  Qxa3 {[%clk 0:02:19]} 21. Rxa3 {[%clk 0:01:56]}  a4 {[%clk 0:02:18]} 22. Rfa1 {[%clk 0:01:47]}  Rfd8 {[%clk 0:02:18]} 23. Nf3 {[%clk 0:01:47]}  Bxc4 {[%clk 0:02:18]} 24. Nxe5 {[%clk 0:01:45]}  Bxe2 {[%clk 0:01:58]} 25. Nxc6 {[%clk 0:01:11]}  Rd1+ {[%clk 0:01:56]} 26. Rxd1 {[%clk 0:01:06]}  Bxd1 {[%clk 0:01:57]} 27. Ne7+ {[%clk 0:01:06]}  Kf7 {[%clk 0:01:58]} 28. Nxf5 {[%clk 0:01:07]}  Ke6 {[%clk 0:01:59]} 29. Nd4+ {[%clk 0:01:00]}  Kd5 {[%clk 0:01:57]} 30. Kf1 {[%clk 0:00:58]}  Kc4 {[%clk 0:01:56]} 31. Ke1 {[%clk 0:00:58]}  Bg4 {[%clk 0:01:51]} 32. Kd2 {[%clk 0:00:58]}  Bd7 {[%clk 0:01:50]} 33. Ra1 {[%clk 0:00:31]}  a3 {[%clk 0:01:46]} 34. Nc2 {[%clk 0:00:15]}  a2 {[%clk 0:01:43]} 35. Nb4 {[%clk 0:00:13]}  Kb3 {[%clk 0:01:43]} 36. Kd3 {[%clk 0:00:08]}  Bf5+ {[%clk 0:01:37]} 37. Kd4 {[%clk 0:00:06]}  Bb1 {[%clk 0:01:37]} 38. Nxa2 {[%clk 0:00:05]}  Bxa2 {[%clk 0:01:37]} 39. c4 {[%clk 0:00:05]}  Ra4 {[%clk 0:01:33]} 40. Kd5 {[%clk 0:00:04]}  Kb2 {[%clk 0:01:32]} 41. Re1 {[%clk 0:00:04]}  Bxc4+ {[%clk 0:01:31]} 42. Kd6 {[%clk 0:00:05]}  Bd3 {[%clk 0:01:28]} 43. Re7 {[%clk 0:00:05]}  g5 {[%clk 0:01:27]} 44. Rg7 {[%clk 0:00:02]}  g4 {[%clk 0:01:27]} 45. Ke5 {[%clk 0:00:03]}  Kc3 {[%clk 0:01:27]} 46. Kf6 {[%clk 0:00:02]}  Kd2 {[%clk 0:01:26]} 47. Re7 {[%clk 0:00:03]}  Ra5 {[%clk 0:01:18]} 48. Kg7 {[%clk 0:00:02]}  Rf5 {[%clk 0:01:16]} 49. Kxh7 {[%clk 0:00:01]}  Rf7+ {[%clk 0:01:15]} 0-1


[Site "https://www.chess.com"]

[Event "Titled Tuesday Blitz October 5 2021"]
[White "Seo, Jung Min"]
[Black "Al-Tarboush, Ward"]
[WhiteFideId "1734687"]
[BlackFideId "7601450"]
[WhiteElo "2486"]
[BlackElo "2296"]
[Result "1-0"]
[Round "02"]
[TimeControl "180+1"]
[Date "2021.10.05"]
[WhiteClock "0:00:18"]
[BlackClock "0:00:01"]

1. d4 {[%clk 0:03:00]}  d5 {[%clk 0:02:58]} 2. c4 {[%clk 0:03:00]}  c6 {[%clk 0:02:55]} 3. Nf3 {[%clk 0:03:00]}  Nf6 {[%clk 0:02:55]} 4. e3 {[%clk 0:03:00]}  e6 {[%clk 0:02:55]} 5. Bd3 {[%clk 0:02:58]}  Nbd7 {[%clk 0:02:52]} 6. Nbd2 {[%clk 0:02:57]}  c5 {[%clk 0:02:51]} 7. cxd5 {[%clk 0:02:55]}  Nxd5 {[%clk 0:02:49]} 8. O-O {[%clk 0:02:53]}  cxd4 {[%clk 0:02:48]} 9. exd4 {[%clk 0:02:52]}  Be7 {[%clk 0:02:46]} 10. Ne4 {[%clk 0:02:52]}  O-O {[%clk 0:02:44]} 11. a3 {[%clk 0:02:51]}  b6 {[%clk 0:02:38]} 12. Qe2 {[%clk 0:02:42]}  Bb7 {[%clk 0:02:35]} 13. Bd2 {[%clk 0:02:36]}  Rc8 {[%clk 0:02:32]} 14. Rfd1 {[%clk 0:02:25]}  N7f6 {[%clk 0:02:30]} 15. Ne5 {[%clk 0:02:17]}  Rc7 {[%clk 0:02:07]} 16. Rac1 {[%clk 0:02:01]}  Rxc1 {[%clk 0:02:06]} 17. Rxc1 {[%clk 0:02:01]}  Qa8 {[%clk 0:02:07]} 18. Nxf6+ {[%clk 0:01:55]}  Nxf6 {[%clk 0:02:05]} 19. g3 {[%clk 0:01:51]}  Rc8 {[%clk 0:01:52]} 20. Re1 {[%clk 0:01:48]}  Bd5 {[%clk 0:01:05]} 21. Bg5 {[%clk 0:01:47]}  h6 {[%clk 0:01:02]} 22. Bd2 {[%clk 0:01:47]}  Bd6 {[%clk 0:00:55]} 23. Bf4 {[%clk 0:01:41]}  Bh1 {[%clk 0:00:46]} 24. f3 {[%clk 0:01:29]}  Bxe5 {[%clk 0:00:44]} 25. dxe5 {[%clk 0:00:47]}  Bxf3 {[%clk 0:00:42]} 26. Qd2 {[%clk 0:00:48]}  Nd5 {[%clk 0:00:26]} 27. Bxh6 {[%clk 0:00:45]}  f5 {[%clk 0:00:06]} 28. exf6 {[%clk 0:00:41]}  Nxf6 {[%clk 0:00:05]} 29. Bxg7 {[%clk 0:00:36]}  Kxg7 {[%clk 0:00:02]} 30. Qg5+ {[%clk 0:00:35]}  Kf7 {[%clk 0:00:03]} 31. Qg6+ {[%clk 0:00:35]}  Ke7 {[%clk 0:00:03]} 32. Qg7+ {[%clk 0:00:35]}  Kd6 {[%clk 0:00:03]} 33. Qxf6 {[%clk 0:00:35]}  Qd5 {[%clk 0:00:03]} 34. Qf4+ {[%clk 0:00:32]}  Kd7 {[%clk 0:00:03]} 35. Qe3 {[%clk 0:00:28]}  Bh1 {[%clk 0:00:03]} 36. Bf1 {[%clk 0:00:25]}  Rf8 {[%clk 0:00:03]} 37. Qd3 {[%clk 0:00:18]}  Rxf1+ {[%clk 0:00:01]} 38. Qxf1 {[%clk 0:00:18]}  Bf3 {[%clk 0:00:01]} 39. Qf2 {[%clk 0:00:18]} 1-0


[Site "https://www.chess.com"]